bitfinex-derivatives/quotes_SOLF0:USTF0_20250428
["timestamp","ask_amount","ask_price","bid_price","bid_amount"]
[1745828299652,6.6062,151.33,151.28,34.80216412]
[1745828300552,6.6062,151.33,151.28,23.46]
[1745828301150,6.6062,151.33,151.29,6.6074]
[1745828301352,6.6062,151.33,151.28,23.46]
[1745828302054,6.6062,151.33,151.3,6.607]
[1745828303151,11.34216412,151.34,151.26,17.09956412]
[1745828303453,11.34216412,151.32,151.26,1.9597]
[1745828303754,6.607,151.31,151.28,6.6081]
[1745828305150,23.46,151.32,151.29,6.6075]
[1745828305455,23.46,151.35,151.26,13.30186412]
[1745828305855,6.6061,151.33,151.3,6.607]
[1745828307158,6.6057,151.34,151.3,6.607]
[1745828308056,6.606,151.33,151.3,6.607]
[1745828308456,23.46,151.35,151.29,6.6075]
[1745828308658,11.34216412,151.34,151.29,6.6075]
[1745828308954,6.6061,151.33,151.29,6.6075]
[1745828309458,6.6064,151.32,151.29,6.6075]
[1745828309751,11.34216412,151.34,151.28,6.6079]
[1745828309953,11.34216412,151.34,151.26,1.9597]
[1745828310158,11.34216412,151.32,151.25,23.46]
[1745828310460,23.46,151.31,151.25,6.6091]
[1745828310657,6.608,151.29,151.25,6.6091]
[1745828311356,6.6081,151.28,151.25,6.6091]
[1745828312356,11.34216412,151.28,151.22,25.3702]
[1745828312657,11.34216412,151.3,151.22,25.3702]
[1745828312856,6.6086,151.27,151.24,6.6095]
[1745828313158,23.46,151.31,151.23,11.34216412]
[1745828313655,6.6079,151.29,151.23,11.34216412]
[1745828314159,6.6079,151.29,151.26,6.6086]
[1745828315163,23.46,151.31,151.23,11.34216412]
[1745828315361,11.34216412,151.3,151.22,25.3702]
[1745828315857,6.6085,151.28,151.24,6.6097]
[1745828316162,11.34216412,151.3,151.22,25.3702]
[1745828316461,23.46,151.31,151.1,361.0]
[1745828316462,11.34216412,151.23,151.1,361.0]
[1745828316655,11.34216412,151.21,151.13,2.0173]
[1745828316858,6.6123,151.19,151.14,6.6138]
[1745828317059,23.46,151.18,151.14,6.6138]
[1745828318959,30.0726,151.18,151.14,6.6138]
[1745828319163,23.46,151.18,151.13,2.0173]
[1745828319863,30.0727,151.18,151.13,8.6317]
[1745828320964,30.0727,151.18,151.14,6.6142]
[1745828321963,23.46,151.18,151.15,6.6137]
[1745828322164,23.48,151.18,151.13,2.0173]
[1745828322566,23.48,151.18,151.16,6.6133]
[1745828322765,23.48,151.18,151.13,2.0173]
[1745828323169,23.48,151.18,151.16,6.613]
[1745828324067,23.48,151.18,151.17,6.6129]
[1745828324263,6.6108,151.22,151.14,18.20512447]
[1745828324568,23.48,151.21,151.14,18.20512447]
[1745828325069,23.48,151.21,151.19,6.6118]
[1745828325570,23.48,151.21,151.18,6.6123]
[1745828326068,30.0912,151.21,151.18,6.6123]
[1745828326870,23.48,151.21,151.19,6.612]
[1745828327170,23.48,151.21,151.14,18.20512447]
[1745828327571,5.9171,151.27,151.17,18.20512447]
[1745828327572,3.9617,151.27,151.17,18.20512447]
[1745828327772,23.48,151.26,151.18,3.9758]
[1745828328071,6.6096,151.25,151.21,6.6107]
[1745828328474,6.6096,151.25,151.18,3.9758]
[1745828328774,6.6099,151.24,151.18,3.9758]
[1745828329174,23.48,151.26,151.18,3.9758]
[1745828329175,23.48,151.26,151.2,6.6114]
[1745828329473,6.6104,151.23,151.2,6.6114]
[1745828329771,23.48,151.22,151.2,6.6114]
[1745828330375,30.0908,151.22,151.19,6.6118]
[1745828331073,23.48,151.22,151.19,6.6119]
[1745828331573,23.48,151.22,151.18,2.0524]
[1745828332275,23.48,151.22,151.2,6.6115]
[1745828335082,23.48,151.22,151.16,1.9738]
[1745828335480,23.48,151.22,151.2,6.6114]
[1745828336182,23.48,151.22,151.16,1.9738]
[1745828336582,6.6118,151.2,151.17,6.6127]
[1745828338081,6.6114,151.21,151.18,6.6124]
[1745828338781,23.48,151.22,151.14,1.981]
[1745828339083,23.48,151.21,151.14,1.981]
[1745828339584,23.48,151.21,151.19,6.6117]
[1745828339783,23.48,151.21,151.14,1.981]
[1745828340084,23.48,151.21,151.2,6.6116]
[1745828340488,23.48,151.22,151.14,20.18612447]
[1745828340786,23.48,151.22,151.21,6.6112]
[1745828341086,23.48,151.25,151.17,18.20512447]
[1745828341385,30.0894,151.25,151.22,6.6105]
[1745828341585,6.6094,151.25,151.18,1.9753]
[1745828341883,23.48,151.25,151.24,6.6098]
[1745828342184,23.48,151.25,151.18,1.9753]
[1745828342683,23.48,151.25,151.19,2.0106]
[1745828342884,23.48,151.28,151.2,1.8981]
[1745828343075,6.6083,151.28,151.2,1.8981]
[1745828343280,30.0883,151.28,151.2,1.8981]
[1745828343484,30.0883,151.28,151.2,25.3781]
[1745828343685,30.0883,151.28,151.25,6.6092]
[1745828344086,30.0883,151.28,151.2,25.3781]
[1745828345682,30.0883,151.28,151.25,6.6092]
[1745828345881,30.0883,151.28,151.2,43.58322447]
[1745828346087,23.48,151.28,151.2,43.58322447]
[1745828346385,23.48,151.3,151.2,43.58322447]
[1745828347084,6.6077,151.29,151.26,6.6086]
[1745828347281,6.6077,151.29,151.2,43.58322447]
[1745828347282,23.48,151.3,151.2,43.58322447]
[1745828347686,23.48,151.3,151.28,6.608]
[1745828347987,23.48,151.3,151.2,43.58322447]
[1745828348286,30.0873,151.3,151.27,6.6083]
[1745828348786,23.48,151.3,151.2,43.58322447]
[1745828349887,6.6084,151.28,151.2,43.58322447]
[1745828350387,6.6084,151.28,151.26,6.6089]
[1745828351090,6.6078,151.29,151.26,6.6089]
[1745828351591,6.6082,151.28,151.26,6.6089]
[1745828352792,23.48,151.3,151.2,43.58322447]
[1745828352992,27.4766,151.33,151.21,23.48]
[1745828353286,27.4766,151.33,151.23,18.20512447]
[1745828353485,27.4766,151.33,151.24,2.0029]
[1745828353690,27.4766,151.33,151.25,23.48]
[1745828353885,27.4766,151.33,151.3,6.6072]
[1745828353886,6.6064,151.32,151.3,6.6072]
[1745828354192,27.4766,151.33,151.3,6.6072]
[1745828354593,34.0827,151.33,151.31,6.6068]
[1745828354794,34.0827,151.33,151.25,25.5216]
[1745828354986,27.4766,151.33,151.25,25.5216]
[1745828355191,6.6064,151.32,151.25,25.5216]
[1745828355393,27.4766,151.33,151.25,25.5216]
[1745828355692,34.0829,151.33,151.3,6.607]
[1745828356188,27.4766,151.33,151.25,25.5216]
[1745828356392,23.48,151.35,151.25,25.5216]
[1745828356594,27.3386,151.35,151.25,25.5216]
[1745828356795,6.6068,151.32,151.28,6.6077]
[1745828357094,6.6068,151.32,151.25,25.5216]
[1745828357394,6.6068,151.32,151.29,6.6076]
[1745828357591,6.6061,151.33,151.25,25.5216]
[1745828357796,6.6061,151.33,151.3,6.607]
[1745828358098,27.3386,151.35,151.25,25.5216]
[1745828358701,6.6061,151.33,151.25,25.5216]
[1745828359902,6.6061,151.33,151.3,6.607]
[1745828360801,6.6064,151.32,151.3,6.607]
[1745828361604,6.6068,151.31,151.29,6.6075]
[1745828363208,6.6066,151.32,151.29,6.6075]
[1745828365710,6.6066,151.32,151.3,6.6071]
[1745828369815,17.96190319,151.33,151.31,6.6068]
[1745828370012,6.6061,151.33,151.26,11.35580319]
[1745828370515,6.6061,151.33,151.3,6.607]
[1745828370917,6.6064,151.32,151.3,6.607]
[1745828374022,6.6064,151.32,151.29,6.6074]
[1745828374523,6.6064,151.32,151.26,11.35580319]
[1745828374818,6.6068,151.31,151.26,11.35580319]
[1745828375020,6.6068,151.31,151.29,6.6075]
[1745828375222,11.35580319,151.33,151.29,6.6075]
[1745828375822,6.6066,151.32,151.29,6.6075]
[1745828376025,11.35580319,151.33,151.29,6.6075]
[1745828376320,6.6067,151.32,151.29,6.6075]
[1745828376524,11.35580319,151.31,151.25,23.48]
[1745828376729,6.6076,151.3,151.25,23.48]
[1745828377025,6.6076,151.3,151.26,6.6087]
[1745828377521,34.81580319,151.31,151.25,23.48]
[1745828377722,34.81580319,151.31,151.27,6.6084]
[1745828378624,34.81580319,151.31,151.26,6.6087]
[1745828378625,6.6077,151.29,151.26,6.6087]
[1745828379926,6.6081,151.28,151.26,6.6087]
[1745828380825,6.6081,151.28,151.25,6.6092]
[1745828381429,11.35580319,151.29,151.22,23.46]
[1745828381926,6.6088,151.27,151.24,6.6098]
[1745828383027,6.609,151.26,151.24,6.6098]
[1745828388728,6.6094,151.25,151.23,6.6102]
[1745828388932,11.35580319,151.25,151.19,25.5586]
[1745828389828,6.611,151.22,151.19,30.0917]
[1745828390031,6.611,151.22,151.19,6.6117]
[1745828390331,6.611,151.22,151.17,2.0009]
[1745828390531,6.611,151.22,151.19,6.6118]
[1745828391832,6.6112,151.21,151.19,6.6118]
[1745828392129,11.35580319,151.23,151.19,6.6118]
[1745828392327,11.35580319,151.25,151.2,6.6116]
[1745828393231,6.6105,151.23,151.2,6.6116]
[1745828393734,6.6105,151.23,151.21,6.6111]
[1745828394228,6.6105,151.23,151.2,6.6114]
[1745828394435,6.6109,151.22,151.16,23.48]
[1745828394734,11.35580319,151.25,151.16,23.48]
[1745828394933,6.6105,151.23,151.21,6.6111]
[1745828399237,6.61,151.24,151.21,6.6111]
[1745828407251,11.35580319,151.25,151.17,11.35580319]
[1745828407447,23.48,151.26,151.19,11.35580319]
[1745828407645,23.48,151.26,151.16,23.48]
[1745828407646,23.48,151.26,151.17,11.35580319]
[1745828408449,6.6096,151.25,151.22,6.6107]
[1745828408752,6.6096,151.25,151.17,11.35580319]
[1745828408957,6.6096,151.25,151.18,2.0017]
[1745828409750,6.61,151.24,151.18,2.0017]
[1745828410151,6.61,151.24,151.21,6.6111]
[1745828410751,11.35580319,151.25,151.18,2.0017]
[1745828411252,6.6108,151.22,151.19,6.6118]
[1745828411454,11.35580319,151.25,151.18,2.0017]
[1745828411747,6.6105,151.23,151.2,6.6114]
[1745828414153,6.6109,151.22,151.19,6.6118]
[1745828414655,6.6112,151.21,151.19,6.6118]
[1745828414954,11.35580319,151.23,151.18,6.6123]
[1745828415157,6.6114,151.21,151.18,6.6123]
[1745828416455,6.6116,151.2,151.18,6.6123]
[1745828416755,11.35580319,151.23,151.17,6.6127]
[1745828416952,11.35580319,151.21,151.15,1.8942]
[1745828417149,34.83580319,151.21,151.15,8.5077]
[1745828418357,6.6127,151.18,151.15,8.5077]
[1745828419456,6.6127,151.18,151.15,6.6135]
[1745828419851,6.6129,151.17,151.14,1.993]
[1745828420054,34.83580319,151.21,151.14,8.6069]
[1745828420355,34.83580319,151.21,151.14,1.993]
[1745828420659,6.6127,151.18,151.15,6.6136]
[1745828424061,6.6127,151.18,151.16,6.6133]
[1745828424964,6.6123,151.19,151.16,6.6133]
[1745828426662,34.83580319,151.21,151.11,13.42740319]
[1745828426865,11.35580319,151.19,151.11,13.42740319]
[1745828427166,6.6132,151.17,151.13,6.6145]
[1745828427366,6.6132,151.17,151.11,13.42740319]
[1745828427967,6.6132,151.17,151.13,6.6142]
[1745828428168,6.6134,151.16,151.13,6.6142]
[1745828428371,6.6134,151.16,151.11,13.42740319]
[1745828428575,11.35580319,151.19,151.14,6.6142]
[1745828428861,6.6132,151.17,151.14,6.6142]
[1745828431171,6.6132,151.17,151.15,6.6137]
[1745828431474,6.6132,151.17,151.11,13.42740319]
[1745828432172,6.6132,151.17,151.14,6.6139]
[1745828433976,6.6132,151.17,151.15,6.6137]
[1745828437279,6.6132,151.17,151.14,6.6141]
[1745828438582,6.6132,151.17,151.15,6.6137]
[1745828438787,6.6132,151.17,151.12,1.8972]
[1745828439087,6.6132,151.17,151.15,6.6137]
[1745828439582,13.89477223,151.17,151.15,6.6137]
[1745828441587,7.28157223,151.17,151.15,6.6137]
[1745828442589,7.28157223,151.17,151.14,6.6141]
[1745828442788,7.28157223,151.16,151.13,7.28157223]
[1745828442989,7.28157223,151.16,151.12,1.8972]
[1745828442990,7.28157223,151.16,151.07,24.63138381]
[1745828443179,7.28157223,151.17,151.13,7.28157223]
[1745828443380,30.0928,151.18,151.14,7.28157223]
[1745828443588,23.48,151.18,151.14,7.28157223]
[1745828443785,23.48,151.18,151.16,6.6131]
[1745828445584,7.28157223,151.21,151.16,7.28157223]
[1745828445785,30.76157223,151.21,151.16,7.28157223]
[1745828446191,37.37307223,151.21,151.18,6.6123]
[1745828446487,37.37307223,151.21,151.17,7.28157223]
[1745828446689,23.48,151.21,151.18,7.28157223]
[1745828447485,23.48,151.21,151.2,6.6116]
[1745828447790,13.89247223,151.22,151.2,6.6116]
[1745828448090,13.89247223,151.22,151.18,7.28157223]
[1745828448590,13.89247223,151.22,151.19,6.6118]
[1745828449697,6.6112,151.21,151.18,13.89387223]
[1745828449891,6.6112,151.21,151.18,6.6123]
[1745828451091,7.28157223,151.21,151.16,7.28157223]
[1745828451395,7.28157223,151.2,151.15,30.76157223]
[1745828451595,7.28157223,151.19,151.16,6.6131]
[1745828452095,7.28157223,151.19,151.15,30.76157223]
[1745828452289,6.6125,151.18,151.15,37.37517223]
[1745828455000,6.6122,151.19,151.16,6.6132]
[1745828460207,6.6125,151.18,151.16,6.6132]
[1745828460503,34.85395104,151.2,151.13,3.9533]
[1745828460706,11.37395104,151.18,151.12,23.48]
[1745828460906,6.6138,151.15,151.12,6.6147]
[1745828461710,6.6143,151.14,151.12,6.6147]
[1745828462108,11.37395104,151.18,151.12,6.6147]
[1745828462614,11.37395104,151.18,151.13,6.6145]
[1745828462806,6.6138,151.16,151.13,6.6145]
[1745828463103,11.37395104,151.18,151.13,6.6145]
[1745828463300,11.37395104,151.18,151.14,6.6141]
[1745828463502,34.85395104,151.2,151.14,6.6141]
[1745828464009,34.85395104,151.2,151.15,6.6135]
[1745828464205,34.85395104,151.2,151.11,11.37395104]
[1745828464407,34.85395104,151.2,151.15,6.6134]
[1745828464607,34.85395104,151.2,151.11,11.37395104]
[1745828465209,6.6123,151.19,151.16,6.6133]
[1745828465413,23.48,151.2,151.13,11.37395104]
[1745828465908,23.48,151.2,151.15,6.6135]
[1745828465909,6.6128,151.18,151.15,6.6135]
[1745828466511,6.6122,151.19,151.16,6.6132]
[1745828466812,23.48,151.2,151.13,11.37395104]
[1745828467012,23.48,151.2,151.13,34.85395104]
[1745828467515,30.0919,151.2,151.17,6.6127]
[1745828467814,23.48,151.2,151.17,6.6127]
[1745828469512,6.6121,151.19,151.16,6.6131]
[1745828469813,23.48,151.2,151.16,6.6131]
[1745828470013,6.6127,151.18,151.15,6.6136]
[1745828470213,34.85395104,151.2,151.15,6.6136]
[1745828470516,6.613,151.17,151.14,6.614]
[1745828470810,11.37395104,151.18,151.1,25.427]
[1745828471513,6.6135,151.16,151.13,6.6146]
[1745828472013,11.37395104,151.18,151.1,25.427]
[1745828472210,11.37395104,151.16,151.1,23.48]
[1745828472413,11.37395104,151.14,151.07,23.48]
[1745828472713,6.6151,151.12,151.09,6.6162]
[1745828473008,6.6151,151.12,151.07,23.48]
[1745828473716,6.6151,151.12,151.1,6.6159]
[1745828474714,6.6151,151.12,151.07,23.48]
[1745828474715,6.6151,151.12,151.09,6.6162]
[1745828475015,6.6149,151.13,151.07,23.48]
[1745828475209,1.9195,151.15,151.12,6.6151]
[1745828475408,34.85395104,151.16,151.08,11.37395104]
[1745828475613,11.37395104,151.18,151.1,11.37395104]
[1745828475817,34.85395104,151.18,151.14,6.6139]
[1745828476016,34.85395104,151.18,151.08,11.37395104]
[1745828476017,6.6136,151.16,151.08,11.37395104]
[1745828476816,6.6131,151.17,151.08,11.37395104]
[1745828477018,6.6131,151.17,151.14,6.614]
[1745828477419,41.46665104,151.18,151.15,6.6137]
[1745828477713,41.46665104,151.18,151.1,13.38075104]
[1745828477914,34.85395104,151.18,151.1,13.38075104]
[1745828478110,6.6129,151.17,151.14,6.6139]
[1745828479115,34.85395104,151.18,151.14,6.6139]
[1745828479414,34.85395104,151.18,151.13,6.6144]
[1745828479615,6.6135,151.16,151.13,6.6144]
[1745828479815,36.80115104,151.18,151.14,6.614]
[1745828480413,6.6131,151.17,151.14,6.614]
[1745828480710,36.80115104,151.18,151.15,6.6137]
[1745828480915,6.6129,151.17,151.1,13.38075104]
[1745828481319,36.80115104,151.18,151.14,6.614]
[1745828481617,36.80115104,151.18,151.1,2.0068]
[1745828481819,36.80115104,151.18,151.14,6.6138]
[1745828482116,36.80115104,151.18,151.1,13.38075104]
[1745828482316,6.6131,151.17,151.1,13.38075104]
[1745828482521,36.80115104,151.18,151.1,13.38075104]
[1745828482708,43.41375104,151.18,151.1,13.38075104]
[1745828482912,43.41375104,151.18,151.11,23.48]
[1745828483114,43.41375104,151.18,151.15,6.6135]
[1745828483815,92.9868975,151.33,151.17,11.37395104]
[1745828484015,11.37395104,151.28,151.18,11.37395104]
[1745828484210,34.85395104,151.28,151.18,11.37395104]
[1745828484518,6.6101,151.24,151.2,6.6113]
[1745828484814,6.611,151.22,151.16,27.4989]
[1745828485023,11.37395104,151.22,151.16,23.48]
[1745828485215,11.37395104,151.2,151.13,2.0762]
[1745828485416,11.37395104,151.18,151.14,6.6138]
[1745828486115,17.98675104,151.18,151.14,6.6138]
[1745828486613,17.98655104,151.18,151.15,6.6136]
[1745828486920,11.37395104,151.18,151.1,34.85395104]
[1745828487118,11.37395104,151.18,151.15,6.6135]
[1745828487717,11.37395104,151.18,151.08,491.52215104]
[1745828488017,6.6134,151.16,151.08,38.82215104]
[1745828489219,6.6134,151.16,151.12,6.6149]
[1745828489719,11.37395104,151.18,151.08,38.82215104]
[1745828490320,6.6132,151.17,151.13,6.6144]
[1745828490820,11.37395104,151.18,151.13,6.6144]
[1745828491723,6.6136,151.16,151.12,6.6149]
[1745828492728,11.37395104,151.18,151.13,6.6145]
[1745828493419,6.6136,151.16,151.13,6.6145]
[1745828494526,6.6138,151.15,151.12,6.615]
[1745828495626,11.37395104,151.16,151.08,27.4482]
[1745828497024,6.6147,151.13,151.1,6.6157]
[1745828498025,6.6151,151.12,151.1,6.6157]
[1745828498220,6.6151,151.12,151.09,6.6162]
[1745828499222,11.37395104,151.12,151.05,2.0762]
[1745828499527,11.37395104,151.1,151.05,2.0762]
[1745828500128,11.37395104,151.1,151.04,23.48]
[1745828501027,6.6171,151.08,151.04,30.0983]
[1745828502427,11.37395104,151.06,151.0,1.9297]
[1745828502627,11.37395104,151.06,150.99,1.15206992]
[1745828502628,11.37395104,151.04,150.96,3.9614]
[1745828502823,11.37395104,151.02,150.96,3.9614]
[1745828503124,6.6201,151.01,150.96,3.9614]
[1745828503422,6.6206,151.0,150.97,6.6214]
[1745828503722,11.37395104,151.02,150.97,6.6214]
[1745828503922,6.6202,151.01,150.97,6.6214]
[1745828506033,6.6202,151.01,150.98,6.6211]
[1745828506425,6.6202,151.01,150.95,23.48]
[1745828506426,6.6206,151.0,150.95,23.48]
[1745828506627,11.37395104,151.02,150.95,23.48]
[1745828506827,6.6206,151.0,150.94,1.9297]
[1745828507328,11.37395104,151.02,150.96,6.6218]
[1745828507831,6.6207,151.0,150.96,6.6218]
[1745828508133,23.5,151.0,150.94,1.9297]
[1745828508631,6.6212,150.99,150.94,1.9297]
[1745828509033,6.6212,150.99,150.96,6.622]
[1745828510934,30.1206,151.0,150.96,6.622]
[1745828511637,6.6208,150.99,150.95,6.6224]
[1745828512035,6.6208,150.99,150.94,1.9297]
[1745828512436,6.6208,150.99,150.96,6.622]
[1745828518738,6.6209,150.99,150.96,6.622]
[1745828519842,23.5,151.0,150.94,1.9297]
[1745828520541,30.1206,151.0,150.97,6.6215]
[1745828520737,23.5,151.0,150.94,1.9297]
[1745828522339,6.6208,150.99,150.94,1.9297]
[1745828522740,6.6208,150.99,150.96,6.6219]
[1745828523535,6.6208,150.99,150.97,6.6216]
[1745828523838,23.5,151.0,150.94,1.9297]
[1745828524240,6.6212,150.99,150.96,6.6219]
[1745828524542,23.5,151.0,150.94,1.9297]
[1745828524933,30.1206,151.0,150.97,6.6213]
[1745828525436,11.37395104,151.02,150.94,1.9297]
[1745828525643,36.96185104,151.04,150.95,11.37395104]
[1745828525843,36.96185104,151.04,150.96,23.5]
[1745828526545,36.96185104,151.04,151.01,6.6199]
[1745828526741,23.5,151.04,150.97,11.37395104]
[1745828527242,23.5,151.04,150.98,3.9134]
[1745828527838,30.1189,151.04,151.01,6.6196]
[1745828528145,23.5,151.04,150.98,3.9134]
[1745828529048,6.6194,151.03,151.01,6.6198]
[1745828529535,6.6195,151.02,151.0,6.6201]
[1745828529739,6.6195,151.02,150.96,23.5]
[1745828530145,6.6195,151.02,151.0,6.6203]
[1745828532548,6.6195,151.02,150.99,6.6206]
[1745828532743,11.37395104,151.02,150.96,23.5]
[1745828533146,11.37395104,151.02,150.97,6.6215]
[1745828534049,6.6208,151.0,150.97,6.6215]
[1745828534444,6.6208,151.0,150.94,1.9297]
[1745828534640,6.6208,151.0,150.98,6.6212]
[1745828535850,6.6208,151.0,150.97,6.6215]
[1745828536050,11.37395104,151.02,150.94,1.9297]
[1745828536448,11.37395104,151.02,150.99,6.6205]
[1745828536647,17.99365104,151.02,150.99,6.6205]
[1745828537351,6.62,151.01,150.98,6.621]
[1745828538853,17.99365104,151.02,150.99,6.6207]
[1745828539555,34.87395104,151.04,150.95,11.37395104]
[1745828540055,6.6192,151.03,151.0,6.6201]
[1745828540454,34.87395104,151.04,151.0,6.6201]
[1745828541354,6.6191,151.03,151.01,6.6198]
[1745828541559,23.5,151.05,150.97,34.87395104]
[1745828542258,23.5,151.05,151.02,6.6192]
[1745828543258,6.6187,151.04,151.02,6.6192]
[1745828543461,6.6187,151.04,151.01,6.6197]
[1745828544261,6.6187,151.04,151.02,6.6193]
[1745828546261,30.1184,151.05,151.02,6.6193]
[1745828546862,23.5,151.05,151.03,6.619]
[1745828547161,34.87395104,151.08,150.99,11.37395104]
[1745828547358,34.87395104,151.08,151.04,6.6182]
[1745828547559,6.6177,151.07,151.04,6.6182]
[1745828548063,6.6178,151.06,151.04,6.6182]
[1745828548264,34.87395104,151.08,151.04,6.6182]
[1745828548459,34.87395104,151.08,151.05,6.6181]
[1745828549264,34.87395104,151.08,151.0,2.0074]
[1745828549265,6.6175,151.07,151.04,6.6184]
[1745828549462,34.87395104,151.08,151.04,6.6184]
[1745828549864,6.6178,151.06,151.03,6.6188]
[1745828551468,34.87395104,151.08,151.0,2.0074]
[1745828551669,11.37395104,151.06,150.97,34.87395104]
[1745828552168,11.37395104,151.04,150.97,23.5]
[1745828552466,11.37395104,151.06,150.97,34.87395104]
[1745828552668,6.6188,151.04,151.01,6.6197]
[1745828553167,6.6191,151.03,151.01,6.6197]
[1745828553368,6.6191,151.03,151.0,6.6201]
[1745828553867,6.6191,151.03,150.97,34.87395104]
[1745828555372,6.6191,151.03,151.0,6.6201]
[1745828556473,6.6191,151.03,151.01,6.6199]
[1745828559574,6.6191,151.03,151.0,6.6201]
[1745828559877,6.6191,151.03,150.97,34.87395104]
[1745828560066,6.6188,151.04,151.01,6.6197]
[1745828560577,11.37395104,151.06,151.01,6.6197]
[1745828561177,6.619,151.04,151.01,6.6197]
[1745828561476,11.37395104,151.06,151.01,6.6197]
[1745828562578,6.619,151.03,151.01,6.6197]
[1745828563375,6.6187,151.04,151.01,6.6197]
[1745828565879,6.6187,151.04,150.97,34.87395104]
[1745828565880,6.619,151.03,151.0,6.6202]
[1745828566067,6.619,151.03,150.97,34.87395104]
[1745828566377,6.619,151.03,151.01,6.6198]
[1745828568582,6.6188,151.04,151.01,6.6198]
[1745828569480,6.6191,151.03,151.01,6.6198]
[1745828571085,6.6191,151.03,151.0,6.6202]
[1745828573085,6.6195,151.02,150.99,6.6205]
[1745828573986,23.5,151.04,150.97,34.87395104]
[1745828574686,6.6191,151.03,150.97,34.87395104]
[1745828575187,6.6191,151.03,151.0,6.62]
[1745828576183,34.87395104,151.04,150.99,6.6206]
[1745828576484,34.87395104,151.04,150.96,1.9875]
[1745828576684,11.37395104,151.02,150.97,6.6213]
[1745828577087,6.6206,151.0,150.97,6.6213]
[1745828578788,6.6206,151.0,150.98,6.6212]
[1745828579088,6.6201,151.01,150.96,1.9875]
[1745828579988,6.6201,151.01,150.99,6.6207]
[1745828580989,6.6201,151.01,150.98,6.621]
[1745828581688,6.6201,151.01,150.99,6.6208]
[1745828581987,6.6194,151.03,150.96,1.9875]
[1745828582289,34.87395104,151.04,150.96,1.9875]
[1745828582885,23.5,151.04,150.97,11.37395104]
[1745828583081,23.5,151.04,151.0,6.6201]
[1745828583490,6.6193,151.03,151.0,6.6201]
[1745828583688,11.37395104,151.06,150.97,11.37395104]
[1745828583689,11.37395104,151.06,151.01,6.6199]
[1745828583894,23.5,151.05,150.97,11.37395104]
[1745828584088,6.6188,151.04,150.97,11.37395104]
[1745828584384,6.6188,151.04,151.01,6.6196]
[1745828584688,6.6188,151.04,151.02,6.6194]
[1745828584890,6.6188,151.04,150.97,11.37395104]
[1745828585291,6.6188,151.04,151.02,6.6194]
[1745828585891,6.6188,151.04,151.01,6.6197]
[1745828586792,30.1184,151.05,151.01,6.6197]
[1745828588296,6.6189,151.04,151.0,6.6201]
[1745828588497,23.5,151.05,150.97,34.87395104]
[1745828589096,23.5,151.05,151.02,6.6194]
[1745828589295,11.37395104,151.04,150.97,23.5]
[1745828589494,11.37395104,151.02,150.94,13.2458]
[1745828589899,23.5,151.01,150.93,38.85895104]
[1745828590094,30.1201,151.01,150.98,6.621]
[1745828592299,30.1201,151.01,150.93,38.85895104]
[1745828592300,6.6204,151.0,150.97,6.6215]
[1745828592599,6.6204,151.0,150.93,38.85895104]
[1745828592891,30.12,151.01,150.98,6.621]
[1745828596195,23.5,151.01,150.99,6.6205]
[1745828597397,30.1199,151.01,150.99,6.6205]
[1745828597606,30.1199,151.01,150.98,6.6211]
[1745828599000,6.6204,151.0,150.97,6.6215]
[1745828599498,30.1202,151.01,150.98,6.621]
[1745828600804,6.6204,151.0,150.97,6.6215]
[1745828601503,30.12,151.01,150.98,6.621]
[1745828601904,23.5,151.01,150.98,6.621]
[1745828602597,30.1201,151.01,150.98,6.621]
[1745828603802,11.37395104,151.0,150.93,38.85895104]